[Event "Titled Tuesday Blitz March 07 Late 2023"]
[White "Rian, Kapriaga"]
[Black "Ardila, Oscar Humberto"]
[WhiteFideId "7103263"]
[BlackFideId "4404742"]
[WhiteElo "2358"]
[BlackElo "1911"]
[Result "1-0"]
[Round "10"]
[TimeControl "180+2"]
[Date "2023.03.07"]
[WhiteClock "0:00:36"]
[BlackClock "0:00:30"]

1. d4 {[%clk 0:03:00]}  Nf6 {[%clk 0:02:59]} 2. Nf3 {[%clk 0:02:59]}  g6 {[%clk 0:02:59]} 3. c4 {[%clk 0:02:57]}  Bg7 {[%clk 0:02:59]} 4. Nc3 {[%clk 0:02:57]}  O-O {[%clk 0:02:59]} 5. e4 {[%clk 0:02:57]}  d6 {[%clk 0:03:00]} 6. Be2 {[%clk 0:02:57]}  Nbd7 {[%clk 0:03:00]} 7. O-O {[%clk 0:02:56]}  e5 {[%clk 0:03:00]} 8. d5 {[%clk 0:02:56]}  Nc5 {[%clk 0:02:58]} 9. Qc2 {[%clk 0:02:56]}  a5 {[%clk 0:02:59]} 10. Bg5 {[%clk 0:02:56]}  h6 {[%clk 0:02:58]} 11. Be3 {[%clk 0:02:50]}  Ng4 {[%clk 0:02:54]} 12. Bxc5 {[%clk 0:02:48]}  dxc5 {[%clk 0:02:53]} 13. Nd2 {[%clk 0:02:47]}  f5 {[%clk 0:02:35]} 14. exf5 {[%clk 0:02:41]}  gxf5 {[%clk 0:02:21]} 15. Bxg4 {[%clk 0:02:39]}  fxg4 {[%clk 0:02:21]} 16. Nde4 {[%clk 0:02:38]}  Qe7 {[%clk 0:02:16]} 17. Rad1 {[%clk 0:02:30]}  Bf5 {[%clk 0:02:15]} 18. Qd2 {[%clk 0:02:29]}  Rad8 {[%clk 0:02:11]} 19. Qe3 {[%clk 0:02:28]}  b6 {[%clk 0:02:09]} 20. f3 {[%clk 0:02:04]}  gxf3 {[%clk 0:02:03]} 21. Rxf3 {[%clk 0:01:58]}  Kh8 {[%clk 0:01:52]} 22. Rdf1 {[%clk 0:01:56]}  Bg4 {[%clk 0:01:39]} 23. Rxf8+ {[%clk 0:01:50]}  Rxf8 {[%clk 0:01:39]} 24. Rxf8+ {[%clk 0:01:49]}  Qxf8 {[%clk 0:01:39]} 25. Qf2 {[%clk 0:01:47]}  Qe7 {[%clk 0:01:28]} 26. h3 {[%clk 0:01:31]}  Bh5 {[%clk 0:01:23]} 27. Qf5 {[%clk 0:01:29]}  Be8 {[%clk 0:01:17]} 28. Qe6 {[%clk 0:01:26]}  Qxe6 {[%clk 0:00:36]} 29. dxe6 {[%clk 0:01:24]}  Bg6 {[%clk 0:00:36]} 30. Kf2 {[%clk 0:00:59]}  Kg8 {[%clk 0:00:36]} 31. Kf3 {[%clk 0:00:55]}  Bf5 {[%clk 0:00:32]} 32. e7 {[%clk 0:00:39]}  Kf7 {[%clk 0:00:31]} 33. Nd5 {[%clk 0:00:38]}  c6 {[%clk 0:00:30]} 34. Nd6+ {[%clk 0:00:36]} 1-0


[Site "https://www.chess.com"]

[Event "Titled Tuesday Blitz March 07 Late 2023"]
[White "Jesusesmifuerza"]
[Black "Romero Ruscalleda, Josep"]
[BlackFideId "2231859"]
[WhiteElo "2082"]
[BlackElo "2183"]
[Result "0-1"]
[Round "10"]
[TimeControl "180+2"]
[Date "2023.03.07"]
[WhiteClock "0:00:04"]
[BlackClock "0:01:45"]

1. d4 {[%clk 0:03:00]}  g6 {[%clk 0:03:00]} 2. Nc3 {[%clk 0:02:59]}  Bg7 {[%clk 0:03:00]} 3. e4 {[%clk 0:02:59]}  d6 {[%clk 0:03:01]} 4. Nf3 {[%clk 0:02:56]}  a6 {[%clk 0:03:01]} 5. a4 {[%clk 0:02:55]}  Nc6 {[%clk 0:03:00]} 6. Be2 {[%clk 0:02:54]}  e5 {[%clk 0:02:59]} 7. Be3 {[%clk 0:02:49]}  exd4 {[%clk 0:02:58]} 8. Nxd4 {[%clk 0:02:48]}  Nge7 {[%clk 0:02:58]} 9. O-O {[%clk 0:02:47]}  O-O {[%clk 0:02:58]} 10. Nd5 {[%clk 0:02:36]}  Kh8 {[%clk 0:02:42]} 11. Nxe7 {[%clk 0:02:28]}  Qxe7 {[%clk 0:02:40]} 12. Bf3 {[%clk 0:02:27]}  Ne5 {[%clk 0:02:38]} 13. Be2 {[%clk 0:02:26]}  c5 {[%clk 0:02:34]} 14. Nb3 {[%clk 0:01:59]}  Be6 {[%clk 0:02:34]} 15. Nd2 {[%clk 0:01:35]}  f5 {[%clk 0:02:28]} 16. f4 {[%clk 0:01:24]}  Nc6 {[%clk 0:02:27]} 17. c3 {[%clk 0:01:18]}  fxe4 {[%clk 0:02:27]} 18. Nc4 {[%clk 0:00:24]}  Rad8 {[%clk 0:02:17]} 19. Nb6 {[%clk 0:00:15]}  d5 {[%clk 0:02:13]} 20. Bf2 {[%clk 0:00:13]}  d4 {[%clk 0:02:09]} 21. cxd4 {[%clk 0:00:09]}  cxd4 {[%clk 0:02:08]} 22. Bc4 {[%clk 0:00:09]}  e3 {[%clk 0:01:51]} 23. Bg3 {[%clk 0:00:04]}  Bxc4 {[%clk 0:01:51]} 24. Nxc4 {[%clk 0:00:04]}  d3 {[%clk 0:01:45]} 0-1


[Site "https://www.chess.com"]

[Event "Titled Tuesday Blitz March 07 Late 2023"]
[White "Howell, David W L"]
[Black "Kohler, Aran"]
[WhiteFideId "410608"]
[BlackFideId "1002856"]
[WhiteElo "2567"]
[BlackElo "2242"]
[Result "1-0"]
[Round "10"]
[TimeControl "180+2"]
[Date "2023.03.07"]
[WhiteClock "0:00:56"]
[BlackClock "0:00:18"]

1. e4 {[%clk 0:02:59]}  c6 {[%clk 0:02:59]} 2. b3 {[%clk 0:02:58]}  d5 {[%clk 0:02:54]} 3. Bb2 {[%clk 0:02:58]}  dxe4 {[%clk 0:02:51]} 4. Nc3 {[%clk 0:02:59]}  Nf6 {[%clk 0:02:51]} 5. Nge2 {[%clk 0:02:59]}  Bg4 {[%clk 0:02:49]} 6. h3 {[%clk 0:02:58]}  Bh5 {[%clk 0:02:49]} 7. g4 {[%clk 0:02:58]}  Bg6 {[%clk 0:02:49]} 8. Nf4 {[%clk 0:02:50]}  e6 {[%clk 0:02:49]} 9. Qe2 {[%clk 0:02:41]}  Nd5 {[%clk 0:02:41]} 10. Nxg6 {[%clk 0:02:35]}  Nxc3 {[%clk 0:02:40]} 11. dxc3 {[%clk 0:02:20]}  hxg6 {[%clk 0:02:40]} 12. Qxe4 {[%clk 0:02:17]}  Qd5 {[%clk 0:02:41]} 13. Bg2 {[%clk 0:02:08]}  Qxe4+ {[%clk 0:02:40]} 14. Bxe4 {[%clk 0:02:09]}  f5 {[%clk 0:02:31]} 15. Bd3 {[%clk 0:01:57]}  Bc5 {[%clk 0:02:22]} 16. Kf1 {[%clk 0:01:51]}  Nd7 {[%clk 0:02:18]} 17. Re1 {[%clk 0:01:51]}  Kf7 {[%clk 0:02:15]} 18. b4 {[%clk 0:01:51]}  Bd6 {[%clk 0:02:00]} 19. Kg2 {[%clk 0:01:42]}  Ne5 {[%clk 0:01:52]} 20. Be2 {[%clk 0:01:40]}  g5 {[%clk 0:01:42]} 21. c4 {[%clk 0:01:28]}  Ng6 {[%clk 0:01:36]} 22. c5 {[%clk 0:01:27]}  Nf4+ {[%clk 0:01:35]} 23. Kf1 {[%clk 0:01:28]}  Bc7 {[%clk 0:01:35]} 24. gxf5 {[%clk 0:01:24]}  exf5 {[%clk 0:01:35]} 25. Bc4+ {[%clk 0:01:24]}  Kg6 {[%clk 0:01:36]} 26. Re7 {[%clk 0:01:23]}  Rac8 {[%clk 0:01:31]} 27. Rxg7+ {[%clk 0:01:21]}  Kh6 {[%clk 0:01:13]} 28. Rxc7 {[%clk 0:01:22]}  Rhd8 {[%clk 0:01:07]} 29. Bg7+ {[%clk 0:01:18]}  Kh5 {[%clk 0:01:06]} 30. Be2+ {[%clk 0:01:17]}  Nxe2 {[%clk 0:00:59]} 31. Rxc8 {[%clk 0:01:17]}  Rd2 {[%clk 0:00:45]} 32. Be5 {[%clk 0:01:07]}  f4 {[%clk 0:00:36]} 33. Kg2 {[%clk 0:01:05]}  Rxc2 {[%clk 0:00:34]} 34. Kf3 {[%clk 0:01:01]}  Rxa2 {[%clk 0:00:32]} 35. Re1 {[%clk 0:00:57]}  Kh4 {[%clk 0:00:18]} 36. Rh8# {[%clk 0:00:56]} 1-0


[Site "https://www.chess.com"]

[Event "Titled Tuesday Blitz March 07 Late 2023"]
[White "Sarkar, Justin"]
[Black "Grycel, Kamil"]
[WhiteFideId "2010011"]
[BlackFideId "1115499"]
[WhiteElo "2189"]
[BlackElo "2463"]
[Result "1-0"]
[Round "10"]
[TimeControl "180+2"]
[Date "2023.03.07"]
[WhiteClock "0:00:04"]
[BlackClock "0:00:31"]

1. d4 {[%clk 0:02:55]}  b6 {[%clk 0:02:59]} 2. g3 {[%clk 0:02:38]}  Bb7 {[%clk 0:02:52]} 3. Nf3 {[%clk 0:02:38]}  f5 {[%clk 0:02:47]} 4. Bg2 {[%clk 0:02:31]}  Nf6 {[%clk 0:02:47]} 5. O-O {[%clk 0:02:30]}  g6 {[%clk 0:02:41]} 6. c4 {[%clk 0:02:27]}  Bg7 {[%clk 0:02:41]} 7. d5 {[%clk 0:02:25]}  O-O {[%clk 0:02:41]} 8. Nd4 {[%clk 0:02:24]}  c5 {[%clk 0:02:27]} 9. Nc2 {[%clk 0:02:15]}  Ne4 {[%clk 0:02:07]} 10. Nd2 {[%clk 0:02:08]}  Nd6 {[%clk 0:02:02]} 11. Rb1 {[%clk 0:02:05]}  e5 {[%clk 0:01:46]} 12. e4 {[%clk 0:01:31]}  Na6 {[%clk 0:01:35]} 13. exf5 {[%clk 0:01:09]}  Nxf5 {[%clk 0:01:14]} 14. Ne4 {[%clk 0:01:08]}  d6 {[%clk 0:01:14]} 15. Ng5 {[%clk 0:01:06]}  Nc7 {[%clk 0:01:14]} 16. h4 {[%clk 0:00:57]}  Nd4 {[%clk 0:01:09]} 17. Nxd4 {[%clk 0:00:50]}  cxd4 {[%clk 0:01:10]} 18. h5 {[%clk 0:00:45]}  Qf6 {[%clk 0:01:06]} 19. Ne4 {[%clk 0:00:35]}  Qe7 {[%clk 0:01:01]} 20. Bg5 {[%clk 0:00:32]}  Qd7 {[%clk 0:00:58]} 21. hxg6 {[%clk 0:00:17]}  hxg6 {[%clk 0:00:58]} 22. Kh2 {[%clk 0:00:15]}  Rf5 {[%clk 0:00:54]} 23. Bh3 {[%clk 0:00:13]}  Raf8 {[%clk 0:00:52]} 24. Kg2 {[%clk 0:00:12]}  Nxd5 {[%clk 0:00:49]} 25. cxd5 {[%clk 0:00:09]}  Bxd5 {[%clk 0:00:49]} 26. f3 {[%clk 0:00:09]}  Bxe4 {[%clk 0:00:49]} 27. fxe4 {[%clk 0:00:07]}  Qc6 {[%clk 0:00:49]} 28. Bxf5 {[%clk 0:00:07]}  gxf5 {[%clk 0:00:49]} 29. Qb3+ {[%clk 0:00:07]}  Kh7 {[%clk 0:00:48]} 30. Rbc1 {[%clk 0:00:06]}  Qb7 {[%clk 0:00:47]} 31. Qd5 {[%clk 0:00:06]}  Qa6 {[%clk 0:00:47]} 32. Rh1+ {[%clk 0:00:06]}  Kg6 {[%clk 0:00:47]} 33. Qe6+ {[%clk 0:00:05]}  Rf6 {[%clk 0:00:45]} 34. Bxf6 {[%clk 0:00:05]}  Qe2+ {[%clk 0:00:45]} 35. Kh3 {[%clk 0:00:05]}  Qg4+ {[%clk 0:00:45]} 36. Kh2 {[%clk 0:00:05]}  Qe2+ {[%clk 0:00:44]} 37. Kg1 {[%clk 0:00:04]}  Qe3+ {[%clk 0:00:44]} 38. Kf1 {[%clk 0:00:04]}  Qf3+ {[%clk 0:00:44]} 39. Kg1 {[%clk 0:00:04]}  Qe3+ {[%clk 0:00:44]} 40. Kg2 {[%clk 0:00:04]}  Qe2+ {[%clk 0:00:44]} 41. Kh3 {[%clk 0:00:04]}  Qg4+ {[%clk 0:00:44]} 42. Kg2 {[%clk 0:00:04]}  Qxe4+ {[%clk 0:00:43]} 43. Kh2 {[%clk 0:00:04]}  Qe2+ {[%clk 0:00:43]} 44. Kh3 {[%clk 0:00:04]}  Bxf6 {[%clk 0:00:43]} 45. Qg8+ {[%clk 0:00:04]}  Bg7 {[%clk 0:00:41]} 46. Qe6+ {[%clk 0:00:03]}  Kg5 {[%clk 0:00:40]} 47. Rhe1 {[%clk 0:00:03]}  Qg4+ {[%clk 0:00:40]} 48. Kg2 {[%clk 0:00:04]}  Bf6 {[%clk 0:00:32]} 49. Qg8+ {[%clk 0:00:04]}  Kh5 {[%clk 0:00:31]} 50. Rh1+ {[%clk 0:00:04]}  Bh4 {[%clk 0:00:31]} 51. Rxh4+ {[%clk 0:00:04]} 1-0


[Site "https://www.chess.com"]

[Event "Titled Tuesday Blitz March 07 Late 2023"]
[White "Estrada Nieto, Julian"]
[Black "Prieto Aranguren, Alain"]
[WhiteFideId "5101018"]
[BlackFideId "2268906"]
[WhiteElo "2176"]
[BlackElo "2209"]
[Result "0-1"]
[Round "10"]
[TimeControl "180+2"]
[Date "2023.03.07"]
[WhiteClock "0:00:01"]
[BlackClock "0:00:03"]

1. e4 {[%clk 0:03:00]}  c6 {[%clk 0:02:56]} 2. d4 {[%clk 0:03:00]}  d5 {[%clk 0:02:54]} 3. exd5 {[%clk 0:03:00]}  cxd5 {[%clk 0:02:54]} 4. Bd3 {[%clk 0:03:01]}  Qa5+ {[%clk 0:02:52]} 5. c3 {[%clk 0:02:59]}  Bd7 {[%clk 0:02:51]} 6. Qe2 {[%clk 0:02:55]}  a6 {[%clk 0:02:50]} 7. Nf3 {[%clk 0:02:54]}  Bb5 {[%clk 0:02:49]} 8. O-O {[%clk 0:02:54]}  Bxd3 {[%clk 0:02:49]} 9. Qxd3 {[%clk 0:02:54]}  Qb5 {[%clk 0:02:50]} 10. Qxb5+ {[%clk 0:02:48]}  axb5 {[%clk 0:02:50]} 11. Na3 {[%clk 0:02:48]}  b4 {[%clk 0:02:47]} 12. Nb5 {[%clk 0:02:40]}  Na6 {[%clk 0:02:40]} 13. cxb4 {[%clk 0:02:39]}  e6 {[%clk 0:01:30]} 14. Bd2 {[%clk 0:02:35]}  Nf6 {[%clk 0:01:27]} 15. Rfc1 {[%clk 0:02:30]}  Ne4 {[%clk 0:01:24]} 16. Be1 {[%clk 0:02:28]}  f6 {[%clk 0:01:20]} 17. Nc7+ {[%clk 0:02:23]}  Nxc7 {[%clk 0:01:16]} 18. Rxc7 {[%clk 0:02:24]}  Nd6 {[%clk 0:01:14]} 19. a4 {[%clk 0:02:04]}  Kd8 {[%clk 0:01:10]} 20. Rcc1 {[%clk 0:02:00]}  g6 {[%clk 0:01:09]} 21. b5 {[%clk 0:01:58]}  Kd7 {[%clk 0:01:05]} 22. b3 {[%clk 0:01:54]}  Bh6 {[%clk 0:01:02]} 23. Bd2 {[%clk 0:01:50]}  Bxd2 {[%clk 0:00:57]} 24. Nxd2 {[%clk 0:01:50]}  g5 {[%clk 0:00:58]} 25. Kf1 {[%clk 0:01:49]}  Nf5 {[%clk 0:00:48]} 26. Rd1 {[%clk 0:01:44]}  h5 {[%clk 0:00:44]} 27. Nf3 {[%clk 0:01:37]}  Rac8 {[%clk 0:00:40]} 28. Ne1 {[%clk 0:01:30]}  Rc3 {[%clk 0:00:36]} 29. Rab1 {[%clk 0:01:26]}  b6 {[%clk 0:00:37]} 30. Nd3 {[%clk 0:01:07]}  Rhc8 {[%clk 0:00:36]} 31. Nb4 {[%clk 0:01:04]}  g4 {[%clk 0:00:33]} 32. Nc6 {[%clk 0:01:02]}  Rc2 {[%clk 0:00:32]} 33. Rdc1 {[%clk 0:00:59]}  Rxc1+ {[%clk 0:00:28]} 34. Rxc1 {[%clk 0:00:56]}  Nxd4 {[%clk 0:00:28]} 35. Rb1 {[%clk 0:00:43]}  Nxc6 {[%clk 0:00:28]} 36. bxc6+ {[%clk 0:00:43]}  Rxc6 {[%clk 0:00:28]} 37. Rb2 {[%clk 0:00:43]}  f5 {[%clk 0:00:28]} 38. Ke2 {[%clk 0:00:44]}  e5 {[%clk 0:00:28]} 39. b4 {[%clk 0:00:43]}  Ke6 {[%clk 0:00:29]} 40. a5 {[%clk 0:00:43]}  bxa5 {[%clk 0:00:29]} 41. bxa5 {[%clk 0:00:44]}  Ra6 {[%clk 0:00:25]} 42. Rb5 {[%clk 0:00:40]}  Kd6 {[%clk 0:00:24]} 43. Kd3 {[%clk 0:00:35]}  Kc6 {[%clk 0:00:24]} 44. Rb8 {[%clk 0:00:36]}  Rxa5 {[%clk 0:00:23]} 45. Rc8+ {[%clk 0:00:36]}  Kd6 {[%clk 0:00:21]} 46. Rh8 {[%clk 0:00:35]}  Ra3+ {[%clk 0:00:20]} 47. Ke2 {[%clk 0:00:34]}  Ra2+ {[%clk 0:00:20]} 48. Ke1 {[%clk 0:00:34]}  f4 {[%clk 0:00:15]} 49. Rxh5 {[%clk 0:00:34]}  d4 {[%clk 0:00:14]} 50. Rh8 {[%clk 0:00:33]}  Kd5 {[%clk 0:00:14]} 51. f3 {[%clk 0:00:26]}  gxf3 {[%clk 0:00:13]} 52. gxf3 {[%clk 0:00:26]}  d3 {[%clk 0:00:13]} 53. Rd8+ {[%clk 0:00:25]}  Kc4 {[%clk 0:00:13]} 54. h4 {[%clk 0:00:23]}  Rh2 {[%clk 0:00:12]} 55. Re8 {[%clk 0:00:23]}  Kd4 {[%clk 0:00:12]} 56. Kf1 {[%clk 0:00:16]}  Rxh4 {[%clk 0:00:12]} 57. Kg2 {[%clk 0:00:15]}  Rh6 {[%clk 0:00:11]} 58. Rd8+ {[%clk 0:00:14]}  Ke3 {[%clk 0:00:11]} 59. Ra8 {[%clk 0:00:12]}  Rg6+ {[%clk 0:00:11]} 60. Kf1 {[%clk 0:00:11]}  Kxf3 {[%clk 0:00:11]} 61. Ra3 {[%clk 0:00:11]}  e4 {[%clk 0:00:11]} 62. Ra2 {[%clk 0:00:10]}  Rb6 {[%clk 0:00:10]} 63. Rf2+ {[%clk 0:00:10]}  Ke3 {[%clk 0:00:10]} 64. Ra2 {[%clk 0:00:04]}  Rc6 {[%clk 0:00:08]} 65. Ra1 {[%clk 0:00:02]}  d2 {[%clk 0:00:06]} 66. Kg2 {[%clk 0:00:02]}  Rc2 {[%clk 0:00:05]} 67. Rd1 {[%clk 0:00:02]}  Ke2 {[%clk 0:00:05]} 68. Ra1 {[%clk 0:00:02]}  d1=Q {[%clk 0:00:05]} 69. Ra3 {[%clk 0:00:01]}  Ke1+ {[%clk 0:00:03]} 0-1


[Site "https://www.chess.com"]

[Event "Titled Tuesday Blitz March 07 Late 2023"]
[White "Smith, Garrett L"]
[Black "Mazurkiewicz, Michal"]
[WhiteFideId "2024829"]
[BlackFideId "1124943"]
[WhiteElo "2258"]
[BlackElo "2054"]
[Result "0-1"]
[Round "10"]
[TimeControl "180+2"]
[Date "2023.03.07"]
[WhiteClock "0:00:04"]
[BlackClock "0:00:10"]

1. e4 {[%clk 0:03:00]}  d6 {[%clk 0:02:59]} 2. d4 {[%clk 0:03:00]}  Nf6 {[%clk 0:02:58]} 3. Nc3 {[%clk 0:02:59]}  c6 {[%clk 0:02:59]} 4. f3 {[%clk 0:02:50]}  e5 {[%clk 0:02:58]} 5. Be3 {[%clk 0:02:49]}  Be7 {[%clk 0:02:58]} 6. g4 {[%clk 0:02:49]}  O-O {[%clk 0:02:59]} 7. Nge2 {[%clk 0:02:48]}  b5 {[%clk 0:02:59]} 8. Ng3 {[%clk 0:02:48]}  Re8 {[%clk 0:02:55]} 9. g5 {[%clk 0:02:42]}  Nfd7 {[%clk 0:02:55]} 10. h4 {[%clk 0:02:29]}  b4 {[%clk 0:02:50]} 11. Nce2 {[%clk 0:02:29]}  d5 {[%clk 0:02:51]} 12. Nf5 {[%clk 0:02:19]}  Bf8 {[%clk 0:02:51]} 13. Qd2 {[%clk 0:02:12]}  dxe4 {[%clk 0:02:41]} 14. fxe4 {[%clk 0:02:11]}  exd4 {[%clk 0:02:41]} 15. Qxd4 {[%clk 0:02:04]}  Nc5 {[%clk 0:02:26]} 16. Qxd8 {[%clk 0:01:48]}  Rxd8 {[%clk 0:02:27]} 17. Bg2 {[%clk 0:01:41]}  Nba6 {[%clk 0:02:20]} 18. O-O {[%clk 0:01:32]}  Re8 {[%clk 0:02:20]} 19. Neg3 {[%clk 0:01:24]}  Nc7 {[%clk 0:02:11]} 20. Rad1 {[%clk 0:01:20]}  N7e6 {[%clk 0:02:05]} 21. Nh5 {[%clk 0:01:14]}  Ba6 {[%clk 0:01:44]} 22. Rf2 {[%clk 0:01:11]}  Red8 {[%clk 0:01:42]} 23. Rxd8 {[%clk 0:01:09]}  Rxd8 {[%clk 0:01:43]} 24. e5 {[%clk 0:01:09]}  Bb5 {[%clk 0:01:35]} 25. Rd2 {[%clk 0:01:02]}  Rxd2 {[%clk 0:01:25]} 26. Bxd2 {[%clk 0:01:00]}  a5 {[%clk 0:01:26]} 27. Nhg3 {[%clk 0:00:57]}  g6 {[%clk 0:01:24]} 28. Ne3 {[%clk 0:00:45]}  h5 {[%clk 0:00:59]} 29. a3 {[%clk 0:00:39]}  bxa3 {[%clk 0:00:54]} 30. bxa3 {[%clk 0:00:40]}  a4 {[%clk 0:00:55]} 31. c4 {[%clk 0:00:36]}  Ba6 {[%clk 0:00:54]} 32. Bxc6 {[%clk 0:00:37]}  Nd4 {[%clk 0:00:32]} 33. Bd5 {[%clk 0:00:32]}  Nd3 {[%clk 0:00:32]} 34. Kf1 {[%clk 0:00:16]}  Bxa3 {[%clk 0:00:22]} 35. Ne4 {[%clk 0:00:16]}  Nxe5 {[%clk 0:00:21]} 36. Nf6+ {[%clk 0:00:14]}  Kg7 {[%clk 0:00:20]} 37. Bc3 {[%clk 0:00:14]}  Bc5 {[%clk 0:00:20]} 38. Ne8+ {[%clk 0:00:08]}  Kf8 {[%clk 0:00:20]} 39. Nc7 {[%clk 0:00:09]}  Bc8 {[%clk 0:00:18]} 40. Ke1 {[%clk 0:00:07]}  a3 {[%clk 0:00:18]} 41. Kd2 {[%clk 0:00:07]}  a2 {[%clk 0:00:18]} 42. Nc2 {[%clk 0:00:06]}  Nef3+ {[%clk 0:00:13]} 43. Kc1 {[%clk 0:00:06]}  Nxc2 {[%clk 0:00:14]} 44. Kxc2 {[%clk 0:00:07]}  Nxh4 {[%clk 0:00:13]} 45. Kb2 {[%clk 0:00:07]}  Nf5 {[%clk 0:00:13]} 46. Kxa2 {[%clk 0:00:07]}  h4 {[%clk 0:00:13]} 47. Be5 {[%clk 0:00:07]}  Ne3 {[%clk 0:00:13]} 48. Na6 {[%clk 0:00:08]}  Nxd5 {[%clk 0:00:13]} 49. Nxc5 {[%clk 0:00:06]}  Ne3 {[%clk 0:00:12]} 50. Kb3 {[%clk 0:00:03]}  Ng4 {[%clk 0:00:11]} 51. Bf4 {[%clk 0:00:01]}  h3 {[%clk 0:00:11]} 52. Ne4 {[%clk 0:00:02]}  h2 {[%clk 0:00:11]} 53. Ng3 {[%clk 0:00:03]}  Bb7 {[%clk 0:00:10]} 54. c5 {[%clk 0:00:04]}  Bd5+ {[%clk 0:00:10]} 0-1


[Site "https://www.chess.com"]

[Event "Titled Tuesday Blitz March 07 Late 2023"]
[White "olga-belka"]
[Black "Kielinkei"]
[WhiteElo "2237"]
[BlackElo "2380"]
[Result "0-1"]
[Round "10"]
[TimeControl "180+2"]
[Date "2023.03.07"]
[WhiteClock "0:00:01"]
[BlackClock "0:00:04"]

1. e4 {[%clk 0:02:57]}  Nf6 {[%clk 0:02:57]} 2. e5 {[%clk 0:02:57]}  Nd5 {[%clk 0:02:58]} 3. d4 {[%clk 0:02:57]}  d6 {[%clk 0:02:59]} 4. Nf3 {[%clk 0:02:55]}  g6 {[%clk 0:02:50]} 5. Be2 {[%clk 0:02:53]}  Bg7 {[%clk 0:02:50]} 6. O-O {[%clk 0:02:53]}  O-O {[%clk 0:02:50]} 7. exd6 {[%clk 0:02:49]}  cxd6 {[%clk 0:02:48]} 8. c4 {[%clk 0:02:48]}  Nb6 {[%clk 0:02:48]} 9. Nc3 {[%clk 0:02:48]}  Nc6 {[%clk 0:02:39]} 10. b3 {[%clk 0:02:46]}  Bg4 {[%clk 0:02:37]} 11. Be3 {[%clk 0:02:46]}  e5 {[%clk 0:02:24]} 12. dxe5 {[%clk 0:02:30]}  dxe5 {[%clk 0:02:22]} 13. Bxb6 {[%clk 0:02:15]}  Qxb6 {[%clk 0:02:07]} 14. Nd5 {[%clk 0:02:14]}  Qd8 {[%clk 0:02:07]} 15. Rc1 {[%clk 0:02:10]}  e4 {[%clk 0:01:57]} 16. Nd2 {[%clk 0:02:02]}  Bxe2 {[%clk 0:01:57]} 17. Qxe2 {[%clk 0:02:02]}  Re8 {[%clk 0:01:57]} 18. Rfd1 {[%clk 0:01:49]}  Nd4 {[%clk 0:01:50]} 19. Qe3 {[%clk 0:01:48]}  Nf5 {[%clk 0:01:37]} 20. Qh3 {[%clk 0:01:34]}  Rc8 {[%clk 0:00:41]} 21. Nf1 {[%clk 0:01:23]}  Qg5 {[%clk 0:00:35]} 22. Nfe3 {[%clk 0:01:17]}  Nxe3 {[%clk 0:00:33]} 23. Nxe3 {[%clk 0:01:15]}  Rcd8 {[%clk 0:00:33]} 24. Nd5 {[%clk 0:01:09]}  Qe5 {[%clk 0:00:30]} 25. Qg3 {[%clk 0:01:01]}  f5 {[%clk 0:00:25]} 26. Qe3 {[%clk 0:00:40]}  b6 {[%clk 0:00:22]} 27. h3 {[%clk 0:00:30]}  Kh8 {[%clk 0:00:22]} 28. Nb4 {[%clk 0:00:20]}  Qc7 {[%clk 0:00:17]} 29. Nd5 {[%clk 0:00:17]}  Qb7 {[%clk 0:00:16]} 30. Qg5 {[%clk 0:00:15]}  Qf7 {[%clk 0:00:13]} 31. Nb4 {[%clk 0:00:14]}  Rxd1+ {[%clk 0:00:12]} 32. Rxd1 {[%clk 0:00:14]}  Bf6 {[%clk 0:00:13]} 33. Qf4 {[%clk 0:00:14]}  Be5 {[%clk 0:00:13]} 34. Qe3 {[%clk 0:00:13]}  Qe6 {[%clk 0:00:12]} 35. Nd5 {[%clk 0:00:11]}  Rd8 {[%clk 0:00:11]} 36. Re1 {[%clk 0:00:10]}  Rd7 {[%clk 0:00:11]} 37. Qg5 {[%clk 0:00:10]}  Bg7 {[%clk 0:00:09]} 38. Qf4 {[%clk 0:00:09]}  h6 {[%clk 0:00:08]} 39. Qb8+ {[%clk 0:00:08]}  Kh7 {[%clk 0:00:08]} 40. Qc8 {[%clk 0:00:06]}  Rd6 {[%clk 0:00:07]} 41. Qc7 {[%clk 0:00:04]}  Qd7 {[%clk 0:00:06]} 42. Qxd7 {[%clk 0:00:03]}  Rxd7 {[%clk 0:00:07]} 43. Rc1 {[%clk 0:00:02]}  Kg8 {[%clk 0:00:07]} 44. Kf1 {[%clk 0:00:02]}  Kf7 {[%clk 0:00:07]} 45. Ke2 {[%clk 0:00:02]}  Ke6 {[%clk 0:00:08]} 46. Nf4+ {[%clk 0:00:02]}  Kf7 {[%clk 0:00:08]} 47. Rd1 {[%clk 0:00:01]}  Rxd1 {[%clk 0:00:07]} 48. Kxd1 {[%clk 0:00:01]}  g5 {[%clk 0:00:07]} 49. Nd5 {[%clk 0:00:02]}  Ke6 {[%clk 0:00:08]} 50. Kc2 {[%clk 0:00:02]}  Kd6 {[%clk 0:00:07]} 51. a4 {[%clk 0:00:01]}  f4 {[%clk 0:00:04]} 52. Nc3 {[%clk 0:00:01]}  e3 {[%clk 0:00:03]} 53. fxe3 {[%clk 0:00:01]}  fxe3 {[%clk 0:00:04]} 54. Ne2 {[%clk 0:00:01]}  Ke5 {[%clk 0:00:04]} 55. Kd3 {[%clk 0:00:02]}  Kd6 {[%clk 0:00:04]} 56. Kxe3 {[%clk 0:00:02]}  Kc5 {[%clk 0:00:05]} 57. Kd3 {[%clk 0:00:02]}  Kb4 {[%clk 0:00:05]} 58. Kc2 {[%clk 0:00:02]}  Be5 {[%clk 0:00:06]} 59. Nc1 {[%clk 0:00:02]}  Bf6 {[%clk 0:00:03]} 60. Nd3+ {[%clk 0:00:03]}  Ka5 {[%clk 0:00:04]} 61. c5 {[%clk 0:00:02]}  bxc5 {[%clk 0:00:04]} 62. Nxc5 {[%clk 0:00:01]}  Kb4 {[%clk 0:00:04]} 63. Nd7 {[%clk 0:00:01]}  Be7 {[%clk 0:00:04]} 64. Ne5 {[%clk 0:00:01]}  Kc5 {[%clk 0:00:04]} 65. Nd3+ {[%clk 0:00:01]}  Kd4 {[%clk 0:00:04]} 0-1


[Site "https://www.chess.com"]

[Event "Titled Tuesday Blitz March 07 Late 2023"]
[White "Hajiyev, Kanan"]
[Black "Rodriguez Santiago, Jaime"]
[WhiteFideId "13404148"]
[BlackFideId "3100898"]
[WhiteElo "2103"]
[BlackElo "2025"]
[Result "1-0"]
[Round "10"]
[TimeControl "180+2"]
[Date "2023.03.07"]
[WhiteClock "0:01:10"]
[BlackClock "0:01:01"]

1. d4 {[%clk 0:03:00]}  Nf6 {[%clk 0:02:59]} 2. Nf3 {[%clk 0:03:01]}  e6 {[%clk 0:02:59]} 3. c4 {[%clk 0:03:02]}  d5 {[%clk 0:02:59]} 4. cxd5 {[%clk 0:03:02]}  Nxd5 {[%clk 0:02:59]} 5. e4 {[%clk 0:03:02]}  Nb6 {[%clk 0:02:58]} 6. a4 {[%clk 0:03:02]}  c5 {[%clk 0:02:58]} 7. a5 {[%clk 0:03:02]}  N6d7 {[%clk 0:02:59]} 8. d5 {[%clk 0:02:53]}  Nf6 {[%clk 0:02:51]} 9. Nc3 {[%clk 0:02:47]}  Be7 {[%clk 0:02:48]} 10. Bb5+ {[%clk 0:02:44]}  Kf8 {[%clk 0:02:41]} 11. O-O {[%clk 0:02:41]}  a6 {[%clk 0:02:39]} 12. Bc4 {[%clk 0:02:41]}  exd5 {[%clk 0:02:38]} 13. exd5 {[%clk 0:02:38]}  Bd6 {[%clk 0:02:35]} 14. Bg5 {[%clk 0:02:36]}  h6 {[%clk 0:02:11]} 15. Bh4 {[%clk 0:02:35]}  g5 {[%clk 0:02:09]} 16. Bg3 {[%clk 0:02:35]}  Bxg3 {[%clk 0:02:08]} 17. fxg3 {[%clk 0:02:36]}  Kg7 {[%clk 0:02:06]} 18. Ne5 {[%clk 0:02:23]}  Qd6 {[%clk 0:01:58]} 19. Nxf7 {[%clk 0:02:08]}  Kxf7 {[%clk 0:01:41]} 20. Ne4 {[%clk 0:02:07]}  Qe5 {[%clk 0:01:41]} 21. Nxf6 {[%clk 0:01:56]}  Kg7 {[%clk 0:01:41]} 22. d6 {[%clk 0:01:47]}  Be6 {[%clk 0:01:15]} 23. Nh5+ {[%clk 0:01:33]}  Kg8 {[%clk 0:01:01]} 24. Re1 {[%clk 0:01:10]} 1-0


[Site "https://www.chess.com"]